fUST/lending_fUST_20240805
["ID","MTS","AMOUNT","RATE_DAILY","PERIOD"]
[334236840,1722853641124,-500.0,0.00041095,31]
[334236841,1722853641148,-500.0,0.00041095,31]
[334236842,1722853641170,-1363.98,0.00041095,31]
[334236843,1722853641192,-500.0,0.00041095,31]
[334236844,1722853641214,-500.0,0.00041095,31]
[334236845,1722853641236,-1070.65876034,0.00041095,30]
[334236846,1722853641258,-500.0,0.00041095,31]
[334236847,1722853641281,-1035.22,0.00041095,31]
[334236848,1722853641307,-500.0,0.00041095,31]
[334236849,1722853641330,-603.37428938,0.00041095,31]
[334236850,1722853641353,-500.0,0.00041095,31]
[334236851,1722853641378,-754.18,0.00041095,31]
[334236852,1722853641402,-1291.29,0.00041095,31]
[334236853,1722853641424,-500.0,0.00041095,31]
[334236854,1722853641448,-500.0,0.00041095,31]
[334236855,1722853641472,-177.33865657,0.00041095,31]
[334236856,1722853641494,-500.0,0.00041095,31]
[334236857,1722853641518,-500.0,0.00041095,31]
[334236858,1722853641541,-500.0,0.00041095,31]
[334236859,1722853641563,-963.68,0.00041095,31]
[334236860,1722853641585,-500.0,0.00041095,31]
[334236861,1722853641608,-518.52,0.00041095,31]
[334236862,1722853641631,-500.0,0.00041095,31]
[334236863,1722853641655,-500.0,0.00041095,31]
[334236864,1722853641678,-500.0,0.00041095,31]
[334236865,1722853641702,-500.0,0.00041095,31]
[334236866,1722853641725,-500.0,0.00041095,31]
[334236867,1722853641749,-500.0,0.00041095,31]
[334236868,1722853641771,-500.0,0.00041095,31]
[334236869,1722853641795,-2510.6,0.00041095,31]
[334236870,1722853641817,-542.95268668,0.00041095,31]
[334236871,1722853641839,-536.77,0.00041095,31]
[334236872,1722853641861,-500.0,0.00041095,31]
[334236873,1722853641883,-521.63497199,0.00041095,31]
[334236874,1722853641915,-500.0,0.00041095,31]
[334236875,1722853641937,-537.93,0.00041095,31]
[334236876,1722853641958,-500.0,0.00041095,31]
[334236877,1722853641981,-2168.67,0.00041095,31]
[334236878,1722853642003,-500.0,0.00041095,31]
[334236879,1722853642027,-500.0,0.00041095,31]
[334236880,1722853642051,-500.0,0.00041095,31]
[334236881,1722853642076,-514.40111993,0.00041095,31]
[334236882,1722853642100,-500.0,0.00041095,31]
[334236883,1722853642126,-615.43,0.00041095,31]
[334236884,1722853642165,-500.0,0.00041095,31]
[334236885,1722853642194,-500.0,0.00041095,31]
[334236886,1722853642220,-1969.57,0.00041095,31]
[334236887,1722853642246,-500.0,0.00041095,31]
[334236888,1722853642272,-500.0,0.00041095,31]
[334236889,1722853642302,-500.0,0.00041095,31]
[334236890,1722853642330,-500.0,0.00041095,31]
[334236891,1722853642355,-894.05,0.00041095,31]
[334236892,1722853642381,-500.0,0.00041095,31]
[334236893,1722853642414,-500.0,0.00041095,31]
[334236894,1722853642437,-500.0,0.00041095,31]
[334236895,1722853642462,-1859.03,0.00041095,31]
[334236896,1722853642489,-500.0,0.00041095,31]
[334236897,1722853642514,-2697.12,0.00041095,31]
[334236898,1722853642539,-592.52,0.00041095,31]
[334236899,1722853642565,-19150.99,0.00041095,31]
[334236900,1722853642590,-500.0,0.00041095,31]
[334236901,1722853642614,-445.6520902,0.00041095,31]
[334236902,1722853642646,-1577.66,0.00041095,31]
[334236903,1722853642674,-500.0,0.00041095,31]
[334236904,1722853642700,-1391.32,0.00041095,31]
[334236905,1722853642723,-500.0,0.00041095,31]
[334236906,1722853642749,-1512.51,0.00041095,31]
[334236907,1722853642773,-500.0,0.00041095,31]
[334236908,1722853642797,-693.02,0.00041095,31]
[334236909,1722853642820,-846.46,0.00041095,31]
[334236910,1722853642844,-500.0,0.00041095,31]
[334236911,1722853642867,-500.0,0.00041095,31]
[334236912,1722853642898,-500.0,0.00041095,31]
[334236913,1722853642921,-621.27152233,0.00041095,31]
[334236914,1722853642945,-1083.49,0.00041095,31]
[334236915,1722853642968,-286.95482962,0.00041095,31]
[334236916,1722853642991,-500.0,0.00041095,31]
[334236917,1722853643016,-826.46,0.00041095,31]
[334236918,1722853643041,-500.0,0.00041095,31]
[334236919,1722853643068,-3075.63,0.00041095,21]
[334236920,1722853643092,-500.0,0.00041095,31]
[334236921,1722853643116,-500.0,0.00041095,31]
[334236922,1722853643147,-278.80846868,0.00041095,31]
[334236923,1722853643170,-500.0,0.00041095,31]
[334236924,1722853643192,-500.0,0.00041095,31]
[334236925,1722853643214,-4511.09,0.00041095,31]
[334236926,1722853643236,-500.0,0.00041095,31]
[334236927,1722853643259,-502.69994326,0.00041095,31]
[334236928,1722853643282,-500.0,0.00041095,31]
[334236929,1722853643310,-559.65,0.00041095,31]
[334236930,1722853643334,-822.52,0.00041095,31]
[334236931,1722853643359,-500.0,0.00041095,31]
[334236932,1722853643382,-588.81,0.00041095,31]
[334236933,1722853643416,-500.0,0.00041095,31]
[334236934,1722853643442,-500.0,0.00041095,31]
[334236935,1722853643467,-349.86488489,0.00041095,31]
[334236936,1722853643490,-877.77,0.00041095,31]
[334236937,1722853643513,-500.0,0.00041095,31]
[334236938,1722853643535,-500.0,0.00041095,31]
[334236939,1722853643557,-500.0,0.00041095,31]
[334236940,1722853643579,-500.0,0.00041095,31]
[334236941,1722853643601,-500.0,0.00041095,31]
[334236942,1722853643623,-500.0,0.00041095,31]
[334236943,1722853643654,-500.0,0.00041095,31]
[334236944,1722853643677,-227.27170442,0.00041095,31]
[334236945,1722853643833,-8470.86,0.00041095,31]
[334236946,1722853643859,-500.0,0.00041095,31]
[334236947,1722853643884,-941.61,0.00041095,31]
[334236948,1722853643915,-3012.07,0.00041095,31]
[334236949,1722853643938,-500.0,0.00041095,31]
[334236950,1722853643961,-1128.78,0.00041095,31]
[334236951,1722853643983,-504.68847399,0.00041095,31]
[334236952,1722853644006,-500.0,0.00041095,31]
[334236953,1722853644029,-1086.57,0.00041095,31]
[334236954,1722853644051,-500.0,0.00041095,31]
[334236955,1722853644075,-1125.92,0.00041095,31]
[334236956,1722853644098,-591.61,0.00041095,31]
[334236957,1722853644120,-500.0,0.00041095,31]
[334236958,1722853644151,-500.0,0.00041095,31]
[334236959,1722853644174,-500.0,0.00041095,31]
[334236960,1722853644198,-500.0,0.00041095,31]
[334236961,1722853644221,-627.14,0.00041095,31]
[334236962,1722853644244,-3248.6,0.00041095,31]
[334236963,1722853644266,-500.0,0.00041095,31]
[334236964,1722853644291,-1387.17,0.00041095,31]
[334236965,1722853644313,-500.0,0.00041095,31]
[334236966,1722853644339,-500.0,0.00041095,31]
[334236967,1722853644362,-500.0,0.00041095,31]
[334236968,1722853644390,-500.0,0.00041095,31]
[334236969,1722853644415,-500.0,0.00041095,31]
[334236970,1722853644442,-500.0,0.00041095,31]
[334236971,1722853644466,-1789.33,0.00041095,31]
[334236972,1722853644489,-731.63,0.00041095,31]
[334236973,1722853644509,-500.0,0.00041095,31]
[334236974,1722853644530,-519.55,0.00041095,31]
[334236975,1722853644552,-500.0,0.00041095,31]
[334236976,1722853644574,-465.06236326,0.00041095,31]
[334236977,1722853644596,-500.0,0.00041095,31]
[334236978,1722853644619,-500.0,0.00041095,31]
[334236979,1722853644646,-500.0,0.00041095,31]
[334236980,1722853644668,-1151.0,0.00041095,31]
[334236981,1722853644691,-4452.84,0.00041095,31]
[334236982,1722853644714,-500.0,0.00041095,31]
[334236983,1722853644738,-500.0,0.00041095,31]
[334236984,1722853644761,-500.0,0.00041095,31]
[334236985,1722853644783,-500.0,0.00041095,31]
[334236986,1722853644805,-1000.0,0.00041095,90]
[334236987,1722853644826,-500.0,0.00041095,31]
[334236988,1722853644848,-500.0,0.00041095,30]
[334236989,1722853644870,-641.65,0.00041095,31]
[334236990,1722853644898,-1346.88,0.00041095,31]
[334236991,1722853644923,-500.0,0.00041095,31]
[334236992,1722853644946,-500.0,0.00041095,31]
[334236993,1722853644971,-537.86,0.00041095,31]
[334236994,1722853644998,-500.0,0.00041095,31]
[334236995,1722853645025,-500.0,0.00041095,31]
[334236996,1722853645052,-3435.94,0.00041095,31]
[334236997,1722853645080,-1610.45,0.00041095,31]
[334236998,1722853645107,-500.0,0.00041095,31]
[334236999,1722853645134,-501.11,0.00041095,31]
[334237000,1722853645172,-631.71,0.00041095,31]
[334237001,1722853645200,-963.17,0.00041095,31]
[334237002,1722853645225,-500.0,0.00041095,31]
[334237003,1722853645250,-500.0,0.00041095,31]
[334237004,1722853645273,-560.77,0.00041095,31]
[334237005,1722853645300,-500.0,0.00041095,31]
[334237006,1722853645326,-500.0,0.00041095,31]
[334237007,1722853645350,-500.0,0.00041095,31]
[334237008,1722853645374,-500.0,0.00041095,31]
[334237009,1722853645403,-500.0,0.00041095,31]
[334237010,1722853645426,-1357.63,0.00041095,31]
[334237011,1722853645450,-500.0,0.00041095,31]
[334237012,1722853645475,-500.0,0.00041095,31]
[334237013,1722853645498,-500.0,0.00041095,31]
[334237014,1722853645521,-1692.24751134,0.00041095,31]
[334237015,1722853645927,-26318.69,0.0003998,3]
[334237016,1722853645951,-192.33248866,0.00041095,31]
[334237017,1722853645979,-500.0,0.00041095,31]
[334237018,1722853646002,-857.73,0.00041095,31]
[334237019,1722853646024,-607.18403529,0.00041095,31]
[334237020,1722853646046,-265.84464276,0.00041095,2]
[334237021,1722853646071,-1168.8,0.00041095,31]
[334237022,1722853646096,-318.95515421,0.00041095,31]
[334237023,1722853646119,-500.0,0.00041095,31]
[334237024,1722853646289,-9235.96,0.00041095,31]
[334237025,1722853646313,-500.0,0.00041095,31]
[334237026,1722853646336,-500.0,0.00041095,31]
[334237027,1722853646358,-500.0,0.00041095,31]
[334237028,1722853646382,-500.0,0.00041095,31]
[334237029,1722853646403,-500.0,0.00041095,31]
[334237030,1722853646424,-500.0,0.00041095,31]
[334237031,1722853646446,-604.59,0.00041095,31]
[334237032,1722853646470,-500.0,0.00041095,31]
[334237033,1722853646492,-500.0,0.00041095,31]
[334237034,1722853646513,-500.0,0.00041095,31]
[334237035,1722853646534,-546.93588173,0.00041095,31]
[334237036,1722853646555,-500.0,0.00041095,31]
[334237037,1722853646576,-11808.59,0.00041095,31]
[334237038,1722853646596,-500.0,0.00041095,31]
[334237039,1722853646617,-501.06330502,0.00041095,31]
[334237040,1722853646638,-500.0,0.00041095,31]
[334237041,1722853646678,-500.0,0.00041095,31]
[334237042,1722853646701,-500.0,0.00041095,31]
[334237043,1722853646722,-809.91,0.00041095,31]
[334237044,1722853646742,-500.0,0.00041095,31]
[334237045,1722853646764,-500.0,0.00041095,31]
[334237046,1722853646785,-500.0,0.00041095,31]
[334237047,1722853646807,-500.0,0.00041095,31]
[334237048,1722853646829,-500.0,0.00041095,31]
[334237049,1722853646850,-500.0,0.00041095,31]
[334237050,1722853646873,-500.0,0.00041095,31]
[334237051,1722853646902,-500.0,0.00041095,31]
[334237052,1722853646924,-615.96,0.00041095,31]
[334237053,1722853646946,-17525.5,0.00041095,120]
[334237054,1722853646969,-500.0,0.00041095,31]
[334237055,1722853646993,-558.09442307,0.00041095,31]
[334237056,1722853647017,-571.01,0.00041095,31]
[334237057,1722853647042,-1298.09,0.00041095,31]
[334237058,1722853647065,-500.0,0.00041095,31]
[334237059,1722853647089,-500.0,0.00041095,31]
[334237060,1722853647113,-1288.15,0.00041095,31]
[334237061,1722853647136,-500.0,0.00041095,31]
[334237062,1722853647171,-500.0,0.00041095,31]
[334237063,1722853647193,-2034.14,0.00041095,31]
[334237064,1722853647216,-7111.98,0.00041095,31]
[334237065,1722853647238,-500.0,0.00041095,31]
[334237066,1722853647261,-1052.26,0.00041095,31]
[334237067,1722853647287,-1029.46,0.00041095,31]
[334237068,1722853647308,-500.0,0.00041095,31]
[334237069,1722853647332,-500.0,0.00041095,31]
[334237070,1722853647354,-500.0,0.00041095,31]
[334237071,1722853647378,-500.0,0.00041095,31]
[334237072,1722853647410,-787.74,0.00041095,31]
[334237073,1722853647432,-387.12051068,0.00041095,31]
[334237074,1722853647455,-500.0,0.00041095,31]
[334237075,1722853647477,-500.0,0.00041095,31]
[334237076,1722853647499,-1039.64,0.00041095,31]
[334237077,1722853647520,-500.0,0.00041095,31]
[334237078,1722853647546,-500.0,0.00041095,31]
[334237079,1722853647569,-500.0,0.00041095,31]
[334237080,1722853647592,-500.0,0.00041095,31]
[334237081,1722853647615,-503.17,0.00041095,31]
[334237082,1722853647636,-500.0,0.00041095,31]
[334237083,1722853647666,-739.79,0.00041095,31]
[334237084,1722853647689,-500.0,0.00041095,31]
[334237085,1722853647710,-500.0,0.00041095,31]
[334237086,1722853647732,-500.0,0.00041095,31]
[334237087,1722853647753,-4532.51,0.00041095,31]
[334237088,1722853647776,-500.0,0.00041095,20]
[334237089,1722853647797,-500.0,0.00041095,31]
[334237090,1722853647818,-507.54,0.00041095,31]
[334237091,1722853647839,-500.0,0.00041095,31]
[334237092,1722853647859,-500.0,0.00041095,31]
[334237093,1722853647880,-13308.53,0.00041095,31]
[334237094,1722853647908,-500.0658617,0.00041095,31]
[334237095,1722853647931,-500.0,0.00041095,31]
[334237096,1722853647952,-500.0,0.00041095,31]
[334237097,1722853647974,-500.0,0.00041095,31]
[334237098,1722853647996,-581.99492634,0.00041095,31]
[334237099,1722853648018,-1147.91,0.00041095,31]
[334237100,1722853648040,-581.74,0.00041095,31]
[334237101,1722853648061,-500.0,0.00041095,31]
[334237102,1722853648082,-500.0,0.00041095,31]
[334237103,1722853648102,-364.13760186,0.00041095,31]
[334237104,1722853648124,-500.0,0.00041095,31]
[334237105,1722853648154,-500.0,0.00041095,31]
[334237106,1722853648177,-500.0,0.00041095,31]
[334237107,1722853648201,-500.0,0.00041095,31]
[334237108,1722853648224,-500.0,0.00041095,31]
[334237109,1722853648248,-959.83,0.00041095,31]
[334237110,1722853648271,-500.0,0.00041095,31]
[334237111,1722853648297,-500.0,0.00041095,31]
[334237112,1722853648324,-500.0,0.00041095,31]
[334237113,1722853648347,-500.0,0.00041095,31]
[334237114,1722853648372,-3993.64623268,0.00041095,31]
[334237115,1722853649618,-154.65203293,0.00020998,15]
[334237116,1722853649639,-160.54991199,0.00026619,2]
[334237117,1722853649665,-17844.71311508,0.00032727,4]
[334237118,1722853650044,-662.64023397,0.00032727,4]
[334237119,1722853650064,-2000.0,0.0004059,2]
[334237120,1722853650086,-591.19891342,0.00040995,2]
[334237121,1722853650107,-21932.24,0.00041085,3]
[334237122,1722853650130,-342.38376732,0.00041095,31]
[334237123,1722853650156,-508.00514171,0.00041095,31]
[334237124,1722853650180,-500.0,0.00041095,31]
[334237125,1722853650201,-500.0,0.00041095,31]
[334237126,1722853650223,-706.7,0.00041095,31]
[334237127,1722853650244,-500.0,0.00041095,31]
[334237128,1722853650266,-500.0,0.00041095,31]
[334237129,1722853650292,-500.0,0.00041095,31]
[334237130,1722853650314,-500.0,0.00041095,31]
[334237131,1722853650338,-5735.07,0.00041095,31]
[334237132,1722853650360,-581.16,0.00041095,31]
[334237133,1722853650383,-500.0,0.00041095,31]
[334237134,1722853650415,-500.0,0.00041095,31]
[334237135,1722853650435,-500.0,0.00041095,31]
[334237136,1722853650457,-500.0,0.00041095,31]
[334237137,1722853650482,-500.0,0.00041095,31]
[334237138,1722853650505,-525.99017494,0.00041095,31]
[334237139,1722853650526,-500.0,0.00041095,31]
[334237140,1722853650552,-500.0,0.00041095,31]
[334237141,1722853650575,-504.86,0.00041095,31]
[334237142,1722853650596,-500.0,0.00041095,31]
[334237143,1722853650618,-356.83789965,0.00041095,31]
[334237144,1722853650639,-590.49,0.00041095,31]
[334237145,1722853650669,-500.0,0.00041095,31]
[334237146,1722853650691,-500.0,0.00041095,31]
[334237147,1722853650712,-230.385105,0.00041096,120]
[334237148,1722853650734,-151.3759575,0.00041275,2]
[334237149,1722853650761,-152.11,0.000414,31]
[334237150,1722853650788,-152.11,0.000414,31]
[334237151,1722853650809,-151.0,0.00041452,120]
[334237152,1722853650832,-6950.04770215,0.0004149,5]
[334237153,1722853650852,-44277.76351566,0.000415,120]
[334237154,1722853650873,-152.0,0.00041508,31]
[334237155,1722853650898,-152.0,0.00041508,31]
[334237156,1722853650919,-151.27311453,0.0004156,6]
[334237157,1722853650943,-6950.04770215,0.0004159,5]
[334237158,1722853650965,-36009.08933231,0.000416,120]
[334237159,1722853650990,-6950.04770215,0.0004162,5]
[334237160,1722853651014,-35394.12267914,0.0004163,2]
[334237161,1722853651037,-500.0,0.00041642,31]
[334237162,1722853651060,-500.0,0.00041642,31]
[334237163,1722853651084,-500.0,0.00041642,31]
[334237164,1722853651107,-500.0,0.00041642,31]
[334237165,1722853651130,-500.0,0.00041642,31]
[334237166,1722853651160,-500.0,0.00041642,31]
[334237167,1722853651181,-500.0,0.00041642,31]
[334237168,1722853651203,-546.20072774,0.00041642,31]
[334237169,1722853651225,-500.0,0.00041643,31]
[334237170,1722853651246,-500.0,0.00041643,31]
[334237171,1722853651268,-500.0,0.00041643,31]
[334237172,1722853651292,-500.0,0.00041643,31]
[334237173,1722853651316,-500.0,0.00041643,31]
[334237174,1722853651338,-500.0,0.00041643,31]
[334237175,1722853651504,-151.0,0.00041643,14]
[334237176,1722853651527,-500.0,0.00041643,31]
[334237177,1722853651550,-151.0,0.00041643,14]
[334237178,1722853651572,-500.0,0.00041643,31]
[334237179,1722853651603,-500.0,0.00041643,31]
[334237180,1722853651627,-500.0,0.00041643,31]
[334237181,1722853651656,-502.36070088,0.00041643,31]
[334237182,1722853651684,-500.0,0.00041643,31]
[334237183,1722853651706,-500.0,0.00041643,31]
[334237184,1722853651727,-500.0,0.00041643,31]
[334237185,1722853651750,-500.0,0.00041643,31]
[334237186,1722853651772,-500.0,0.00041643,31]
[334237187,1722853651797,-500.0,0.00041643,31]
[334237188,1722853651819,-500.0,0.00041643,31]
[334237189,1722853651842,-500.0,0.00041643,31]
[334237190,1722853651871,-500.0,0.00041643,31]
[334237191,1722853651893,-500.0,0.00041643,31]
[334237192,1722853651924,-500.0,0.00041643,31]
[334237193,1722853651946,-5000.0,0.00041643,30]
[334237194,1722853651968,-151.0,0.00041643,14]
[334237195,1722853651990,-500.0,0.00041643,31]
[334237196,1722853652013,-500.0,0.00041643,31]
[334237197,1722853652035,-325.52924746,0.00041643,3]
[334237198,1722853652057,-500.0,0.00041643,31]
[334237199,1722853652079,-500.0,0.00041643,31]
[334237200,1722853652102,-457.1039016,0.00041643,31]
[334237201,1722853652124,-500.0,0.00041643,31]
[334237202,1722853652152,-500.0,0.00041643,31]
[334237203,1722853652174,-151.0,0.00041643,14]
[334237204,1722853652197,-151.0,0.00041643,14]
[334237205,1722853652220,-556.64038786,0.00041643,31]
[334237206,1722853652243,-916.42,0.00041643,31]
[334237207,1722853652265,-500.0,0.00041643,31]
[334237208,1722853652292,-500.0,0.00041643,31]
[334237209,1722853652314,-500.0,0.00041643,31]
[334237210,1722853652337,-378.89970757,0.00041643,31]
[334237211,1722853652358,-1238.32,0.00041643,31]
[334237212,1722853652384,-500.0,0.00041643,31]
[334237213,1722853652414,-500.0,0.00041643,31]
[334237214,1722853652440,-500.0,0.00041643,31]
[334237215,1722853652465,-500.0,0.00041643,31]
[334237216,1722853652489,-500.0,0.00041643,31]
[334237217,1722853652512,-500.0,0.00041643,31]
[334237218,1722853652535,-470.3834818,0.00041643,31]
[334237219,1722853652558,-1344.12,0.00041643,31]
[334237220,1722853652580,-500.0,0.00041643,31]
[334237221,1722853652603,-579.77,0.00041643,31]
[334237222,1722853652625,-500.0,0.00041643,31]
[334237223,1722853652653,-508.27,0.00041643,31]
[334237224,1722853652675,-500.0,0.00041643,31]
[334237225,1722853652700,-701.19,0.00041643,31]
[334237226,1722853652722,-500.0,0.00041643,31]
[334237227,1722853652743,-500.0,0.00041643,31]
[334237228,1722853652765,-500.0,0.00041643,31]
[334237229,1722853652786,-500.0,0.00041643,31]
[334237230,1722853652807,-500.0,0.00041643,31]
[334237231,1722853652829,-500.0,0.00041643,31]
[334237232,1722853652850,-500.0,0.00041643,10]
[334237233,1722853652871,-500.0,0.00041643,31]
[334237234,1722853652893,-500.0,0.00041643,31]
[334237235,1722853652918,-401.70453898,0.00041643,31]
[334237236,1722853652940,-500.0,0.00041643,31]
[334237237,1722853652961,-500.0,0.00041643,31]
[334237238,1722853652983,-500.0,0.00041643,31]
[334237239,1722853653005,-500.0,0.00041643,31]
[334237240,1722853653026,-500.0,0.00041643,31]
[334237241,1722853653049,-500.0,0.00041643,31]
[334237242,1722853653071,-500.0,0.00041643,31]
[334237243,1722853653094,-324.97256621,0.00041643,31]
[334237244,1722853653117,-500.0,0.00041643,31]
[334237245,1722853653141,-502.81887793,0.00041643,31]
[334237246,1722853653172,-530.83237298,0.00041643,31]
[334237247,1722853653197,-500.0,0.00041643,31]
[334237248,1722853653221,-477.25119731,0.00041643,31]
[334237249,1722853653245,-500.0,0.00041643,31]
[334237250,1722853653270,-500.0,0.00041643,31]
[334237251,1722853653299,-500.0,0.00041643,31]
[334237252,1722853653326,-500.0,0.00041643,31]
[334237253,1722853653357,-500.0,0.00041643,31]
[334237254,1722853653382,-500.0,0.00041643,31]
[334237255,1722853653422,-500.0,0.00041643,31]
[334237256,1722853653445,-500.0,0.00041643,31]
[334237257,1722853653472,-1294.28,0.00041643,31]
[334237258,1722853653498,-534.98,0.00041643,31]
[334237259,1722853653525,-500.0,0.00041643,31]
[334237260,1722853653550,-500.0,0.00041643,31]
[334237261,1722853653574,-500.0,0.00041643,31]
[334237262,1722853653598,-500.0,0.00041643,31]
[334237263,1722853653622,-793.78,0.00041643,31]
[334237264,1722853653650,-500.0,0.00041643,31]
[334237265,1722853653674,-500.0,0.00041643,31]
[334237266,1722853653705,-500.0,0.00041643,31]
[334237267,1722853653733,-500.0,0.00041643,31]
[334237268,1722853653757,-500.0,0.00041643,2]
[334237269,1722853653782,-500.0,0.00041643,31]
[334237270,1722853653806,-500.0,0.00041643,31]
[334237271,1722853653831,-500.0,0.00041643,31]
[334237272,1722853653858,-500.0,0.00041643,31]
[334237273,1722853653884,-500.0,0.00041643,31]
[334237274,1722853653919,-500.0,0.00041643,31]
[334237275,1722853653947,-744.45,0.00041643,31]
[334237276,1722853653972,-500.0,0.00041643,31]
[334237277,1722853653998,-500.0,0.00041643,31]
[334237278,1722853654169,-647.59878764,0.00041643,31]
[334237279,1722853654194,-500.0,0.00041643,31]
[334237280,1722853654222,-500.0,0.00041643,31]
[334237281,1722853654248,-1515.98,0.00041643,31]
[334237282,1722853654272,-500.0,0.00041643,31]
[334237283,1722853654303,-500.0,0.00041643,31]
[334237284,1722853654330,-500.0,0.00041643,31]
[334237285,1722853654355,-500.0,0.00041643,31]
[334237286,1722853654382,-500.0,0.00041643,31]
[334237287,1722853654414,-500.0,0.00041643,31]
[334237288,1722853654438,-500.0,0.00041643,31]
[334237289,1722853654464,-500.0,0.00041643,31]
[334237290,1722853654486,-500.0,0.00041643,31]
[334237291,1722853654511,-1575.68,0.00041643,31]
[334237292,1722853654542,-500.0,0.00041643,31]
[334237293,1722853654565,-500.0,0.00041643,31]
[334237294,1722853654587,-500.0,0.00041643,31]
[334237295,1722853654609,-500.0,0.00041643,31]
[334237296,1722853654632,-500.0,0.00041643,31]
[334237297,1722853654661,-524.46,0.00041643,31]
[334237298,1722853654683,-500.0,0.00041643,31]
[334237299,1722853654706,-658.85,0.00041643,31]
[334237300,1722853654729,-500.0,0.00041643,31]
[334237301,1722853654752,-500.0,0.00041643,31]
[334237302,1722853654774,-500.0,0.00041643,31]
[334237303,1722853654796,-151.51977041,0.00041643,31]
[334237304,1722853654819,-500.0,0.00041643,31]
[334237305,1722853654842,-500.0,0.00041643,31]
[334237306,1722853654864,-500.0,0.00041643,31]
[334237307,1722853654886,-500.0,0.00041643,31]
[334237308,1722853654915,-500.0,0.00041643,31]
[334237309,1722853654938,-1306.9,0.00041643,31]
[334237310,1722853654960,-828.08,0.00041643,31]
[334237311,1722853654982,-500.0,0.00041643,31]
[334237312,1722853655004,-500.0,0.00041643,31]
[334237313,1722853655027,-500.0,0.00041643,31]
[334237314,1722853655049,-502.88295275,0.00041643,31]
[334237315,1722853655076,-500.0,0.00041643,31]
[334237316,1722853655099,-500.0,0.00041643,31]
[334237317,1722853655121,-1667.27,0.00041643,31]
[334237318,1722853655143,-500.0,0.00041643,31]
[334237319,1722853655173,-500.0,0.00041643,31]
[334237320,1722853655195,-500.0,0.00041643,31]
[334237321,1722853655216,-500.0,0.00041643,31]
[334237322,1722853655238,-918.6,0.00041643,31]
[334237323,1722853655261,-1530.01,0.00041643,31]
[334237324,1722853655283,-500.0,0.00041643,31]
[334237325,1722853655305,-500.0,0.00041643,31]
[334237326,1722853655331,-915.69,0.00041643,31]
[334237327,1722853655352,-500.0,0.00041643,31]
[334237328,1722853655375,-456.39012041,0.00041643,31]
[334237329,1722853655403,-500.0,0.00041643,31]
[334237330,1722853655428,-500.0,0.00041643,31]
[334237331,1722853655450,-726.33,0.00041643,31]
[334237332,1722853655473,-500.0,0.00041643,31]
[334237333,1722853655497,-500.0,0.00041643,31]
[334237334,1722853655518,-500.92729254,0.00041643,31]
[334237335,1722853655540,-500.0,0.00041643,31]
[334237336,1722853655561,-500.0,0.00041643,31]
[334237337,1722853655584,-500.0,0.00041643,31]
[334237338,1722853655605,-500.0,0.00041643,31]
[334237339,1722853655628,-1623.86,0.00041643,31]